fUSD/lending_fUSD_20260521
["ID","MTS","AMOUNT","RATE_DAILY","PERIOD"]
[422765909,1779371850000,-500.0,0.00039483,120]
[422765907,1779371850000,-500.0,0.00039483,120]
[422765912,1779371850000,-500.0,0.00039483,120]
[422765924,1779371851000,-500.0,0.00039483,120]
[422765918,1779371851000,-500.0,0.00039483,120]
[422765917,1779371851000,-500.0,0.00039483,120]
[422765920,1779371851000,-500.0,0.00039483,120]
[422765919,1779371851000,-500.0,0.00039483,120]
[422765922,1779371851000,-545.70763819,0.00039483,120]
[422765921,1779371851000,-500.0,0.00039483,120]
[422765923,1779371851000,-641.09078281,0.00039483,120]
[422765926,1779371851000,-500.0,0.00039483,120]
[422765928,1779371851000,-205.06121664,0.00039483,120]
[422765935,1779371851000,-500.0,0.00039483,120]
[422765927,1779371851000,-500.0,0.00039483,120]
[422765930,1779371851000,-500.0,0.00039483,120]
[422765929,1779371851000,-500.0,0.00039483,120]
[422765931,1779371851000,-500.0,0.00039483,120]
[422765932,1779371851000,-500.0,0.00039483,120]
[422765933,1779371851000,-500.0,0.00039483,120]
[422765934,1779371851000,-500.0,0.00039483,120]
[422765925,1779371851000,-500.0,0.00039483,120]
[422765936,1779371851000,-504.55046049,0.00039483,120]
[422765942,1779371852000,-500.0,0.00039483,120]
[422765943,1779371852000,-211.28208494,0.00039483,120]
[422765941,1779371852000,-500.0,0.00039483,120]
[422765945,1779371852000,-645.68,0.00039483,120]
[422765938,1779371852000,-403.01647594,0.00039483,120]
[422765937,1779371852000,-203.89633841,0.00039483,120]
[422765940,1779371852000,-500.0,0.00039483,120]
[422765944,1779371852000,-546.72550844,0.00039483,120]
[422765939,1779371852000,-358.27545199,0.00039483,120]
[422765947,1779371852000,-645.68,0.00039483,120]
[422765954,1779371852000,-645.68,0.00039483,120]
[422765953,1779371852000,-645.68,0.00039483,120]
[422765952,1779371852000,-645.68,0.00039483,120]
[422765946,1779371852000,-645.68,0.00039483,120]
[422765951,1779371852000,-645.68,0.00039483,120]
[422765949,1779371852000,-645.68,0.00039483,120]
[422765948,1779371852000,-645.68,0.00039483,120]
[422765950,1779371852000,-645.68,0.00039483,120]
[422765961,1779371853000,-645.68,0.00039483,120]
[422765955,1779371853000,-645.68,0.00039483,120]
[422765957,1779371853000,-645.68,0.00039483,120]
[422765956,1779371853000,-645.68,0.00039483,120]
[422765958,1779371853000,-645.68,0.00039483,120]
[422765959,1779371853000,-645.68,0.00039483,120]
[422765960,1779371853000,-645.68,0.00039483,120]
[422765962,1779371853000,-645.68,0.00039483,120]
[422765963,1779371853000,-645.68,0.00039483,120]
[422765964,1779371853000,-365.89505896,0.00039483,120]
[422765965,1779371853000,-645.68,0.00039483,120]
[422765967,1779371853000,-645.68,0.00039483,120]
[422765966,1779371853000,-645.68,0.00039483,120]
[422765968,1779371853000,-645.68,0.00039483,120]
[422765969,1779371853000,-645.69638461,0.00039483,120]
[422765970,1779371853000,-528.36877186,0.00039483,120]
[422765971,1779371853000,-483.03,0.00039483,120]
[422765972,1779371854000,-483.03,0.00039483,120]
[422765974,1779371854000,-483.03,0.00039483,120]
[422765973,1779371854000,-483.03,0.00039483,120]
[422765975,1779371854000,-500.0,0.00039483,120]
[422765976,1779371854000,-500.0,0.00039483,120]
[422765977,1779371854000,-364.18351532,0.00039483,120]
[422765979,1779371854000,-500.0,0.00039483,120]
[422765978,1779371854000,-500.0,0.00039483,120]
[422765988,1779371854000,-1330.67,0.00039483,120]
[422765980,1779371854000,-500.0,0.00039483,120]
[422765982,1779371854000,-212.83686524,0.00039483,120]
[422765983,1779371854000,-576.26928926,0.00039483,120]
[422765984,1779371854000,-438.07255421,0.00039483,120]
[422765985,1779371854000,-183.16947164,0.00039483,120]
[422765986,1779371854000,-353.4303203,0.00039483,120]
[422765987,1779371854000,-1330.67,0.00039483,120]
[422765981,1779371854000,-500.0,0.00039483,120]
[422765989,1779371854000,-1330.67,0.00039483,120]
[422765996,1779371855000,-1330.67,0.00039483,120]
[422765995,1779371855000,-1330.67,0.00039483,120]
[422765993,1779371855000,-1330.67,0.00039483,120]
[422765990,1779371855000,-1330.67,0.00039483,120]
[422765992,1779371855000,-1330.67,0.00039483,120]
[422765991,1779371855000,-1330.67,0.00039483,120]
[422765997,1779371855000,-1330.67,0.00039483,120]
[422765994,1779371855000,-1330.67,0.00039483,120]
[422765998,1779371855000,-1330.67,0.00039483,120]
[422766006,1779371855000,-1330.67,0.00039483,120]
[422766000,1779371855000,-1330.67,0.00039483,120]
[422766008,1779371855000,-1330.67,0.00039483,120]
[422766007,1779371855000,-1330.67,0.00039483,120]
[422766004,1779371855000,-1330.67,0.00039483,120]
[422765999,1779371855000,-1330.67,0.00039483,120]
[422766002,1779371855000,-1330.67,0.00039483,120]
[422766003,1779371855000,-1330.67,0.00039483,120]
[422766001,1779371855000,-1330.67,0.00039483,120]
[422766005,1779371855000,-1330.67,0.00039483,120]
[422766016,1779371856000,-438.25784297,0.00039483,120]
[422766010,1779371856000,-1330.8730147,0.00039483,120]
[422766011,1779371856000,-500.0,0.00039483,120]
[422766013,1779371856000,-421.09674206,0.00039483,120]
[422766012,1779371856000,-205.62407448,0.00039483,120]
[422766015,1779371856000,-318.24925106,0.00039483,120]
[422766014,1779371856000,-355.08928503,0.00039483,120]
[422766009,1779371856000,-1330.67,0.00039483,120]
[422766017,1779371856000,-188.52741325,0.00039483,120]
[422766019,1779371856000,-299.30467364,0.00039483,120]
[422766020,1779371856000,-279.81999709,0.00039483,120]
[422766022,1779371856000,-500.0,0.00039483,120]
[422766021,1779371856000,-174.07588702,0.00039483,120]
[422766024,1779371856000,-240.6598661,0.00039483,120]
[422766023,1779371856000,-614.91325125,0.00039483,120]
[422766025,1779371856000,-388.55360506,0.00039483,120]
[422766026,1779371856000,-531.72,0.00039483,120]
[422766018,1779371856000,-264.33486394,0.00039483,120]
[422766034,1779371857000,-531.72,0.00039483,120]
[422766033,1779371857000,-531.72,0.00039483,120]
[422766032,1779371857000,-531.72,0.00039483,120]
[422766027,1779371857000,-531.72,0.00039483,120]
[422766030,1779371857000,-531.72,0.00039483,120]
[422766029,1779371857000,-531.72,0.00039483,120]
[422766028,1779371857000,-531.72,0.00039483,120]
[422766031,1779371857000,-531.72,0.00039483,120]
[422766035,1779371857000,-270.85046133,0.00039483,120]
[422766037,1779371857000,-531.72,0.00039483,120]
[422766039,1779371857000,-531.72,0.00039483,120]
[422766045,1779371857000,-531.72,0.00039483,120]
[422766044,1779371857000,-531.72,0.00039483,120]
[422766043,1779371857000,-234.80582953,0.00039483,120]
[422766036,1779371857000,-531.72,0.00039483,120]
[422766041,1779371857000,-531.72,0.00039483,120]
[422766040,1779371857000,-531.72,0.00039483,120]
[422766038,1779371857000,-531.72,0.00039483,120]
[422766042,1779371857000,-531.72,0.00039483,120]
[422766053,1779371858000,-531.72,0.00039483,120]
[422766046,1779371858000,-531.72,0.00039483,120]
[422766047,1779371858000,-531.72,0.00039483,120]
[422766048,1779371858000,-531.72,0.00039483,120]
[422766049,1779371858000,-500.0,0.00039483,120]
[422766050,1779371858000,-500.0,0.00039483,120]
[422766051,1779371858000,-531.72,0.00039483,120]
[422766052,1779371858000,-500.0,0.00039483,120]
[422766054,1779371858000,-500.0,0.00039483,120]
[422766055,1779371858000,-531.92427721,0.00039483,120]
[422766056,1779371858000,-500.0,0.00039483,120]
[422766063,1779371858000,-500.0,0.00039483,120]
[422766061,1779371858000,-500.0,0.00039483,120]
[422766062,1779371858000,-500.0,0.00039483,120]
[422766064,1779371858000,-194.26349011,0.00039483,120]
[422766059,1779371858000,-500.0,0.00039483,120]
[422766058,1779371858000,-272.42375633,0.00039483,120]
[422766057,1779371858000,-630.26706762,0.00039483,120]
[422766060,1779371858000,-500.0,0.00039483,120]
[422766072,1779371859000,-500.0,0.00039483,120]
[422766065,1779371859000,-500.0,0.00039483,120]
[422766067,1779371859000,-500.0,0.00039483,120]
[422766068,1779371859000,-500.0,0.00039483,120]
[422766069,1779371859000,-500.0,0.00039483,120]
[422766070,1779371859000,-500.0,0.00039483,120]
[422766071,1779371859000,-500.0,0.00039483,120]
[422766073,1779371859000,-500.0,0.00039483,120]
[422766066,1779371859000,-500.0,0.00039483,120]
[422766074,1779371859000,-500.0,0.00039483,120]
[422766075,1779371859000,-313.43282528,0.00039483,120]
[422766083,1779371859000,-269.17261429,0.00039483,120]
[422766081,1779371859000,-500.0,0.00039483,120]
[422766080,1779371859000,-500.0,0.00039483,120]
[422766082,1779371859000,-205.25253809,0.00039483,120]
[422766078,1779371859000,-500.0,0.00039483,120]
[422766077,1779371859000,-500.0,0.00039483,120]
[422766076,1779371859000,-500.0,0.00039483,120]
[422766079,1779371859000,-500.0,0.00039483,120]
[422766090,1779371860000,-500.0,0.00039483,120]
[422766085,1779371860000,-376.07983325,0.00039483,120]
[422766086,1779371860000,-572.16565561,0.00039483,120]
[422766087,1779371860000,-500.0,0.00039483,120]
[422766088,1779371860000,-223.68634543,0.00039483,120]
[422766089,1779371860000,-195.23128052,0.00039483,120]
[422766091,1779371860000,-500.0,0.00039483,120]
[422766084,1779371860000,-207.24839736,0.00039483,120]
[422766093,1779371860000,-500.0,0.00039483,120]
[422766094,1779371860000,-540.21376031,0.00039483,120]
[422766095,1779371860000,-500.0,0.00039483,120]
[422766096,1779371860000,-500.0,0.00039483,120]
[422766097,1779371860000,-500.0,0.00039483,120]
[422766098,1779371860000,-348.74713432,0.00039483,120]
[422766099,1779371860000,-500.0,0.00039483,120]
[422766100,1779371860000,-500.0,0.00039483,120]
[422766092,1779371860000,-396.49096635,0.00039483,120]
[422766101,1779371861000,-500.0,0.00039483,120]
[422766102,1779371861000,-500.0,0.00039483,120]
[422766103,1779371861000,-439.17479677,0.00039483,120]
[422766105,1779371861000,-500.0,0.00039483,120]
[422766104,1779371861000,-500.0,0.00039483,120]
[422766106,1779371861000,-500.0,0.00039483,120]
[422766107,1779371861000,-479.98900581,0.00039483,120]
[422766108,1779371861000,-500.0,0.00039483,120]
[422766110,1779371861000,-500.0,0.00039483,120]
[422766111,1779371861000,-500.0,0.00039483,120]
[422766112,1779371861000,-500.0,0.00039483,120]
[422766113,1779371861000,-252.99586229,0.00039483,120]
[422766114,1779371861000,-500.0,0.00039483,120]
[422766116,1779371861000,-500.0,0.00039483,120]
[422766115,1779371861000,-500.0,0.00039483,120]
[422766109,1779371861000,-500.0,0.00039483,120]
[422766123,1779371862000,-553.25097543,0.00039483,120]
[422766121,1779371862000,-214.47998891,0.00039483,120]
[422766122,1779371862000,-500.0,0.00039483,120]
[422766118,1779371862000,-500.0,0.00039483,120]
[422766124,1779371862000,-220.12059902,0.00039483,120]
[422766119,1779371862000,-500.0,0.00039483,120]
[422766117,1779371862000,-500.0,0.00039483,120]
[422766120,1779371862000,-500.0,0.00039483,120]
[422766125,1779371862000,-186.38338543,0.00039483,120]
[422766132,1779371862000,-156.41698806,0.00039483,120]
[422766127,1779371862000,-500.0,0.00039483,120]
[422766135,1779371862000,-183.20184461,0.00039483,120]
[422766134,1779371862000,-181.49219822,0.00039483,120]
[422766133,1779371862000,-500.0,0.00039483,120]
[422766126,1779371862000,-500.0,0.00039483,120]
[422766130,1779371862000,-263.71905966,0.00039483,120]
[422766129,1779371862000,-500.0,0.00039483,120]
[422766128,1779371862000,-500.0,0.00039483,120]
[422766131,1779371862000,-210.66081137,0.00039483,120]
[422766136,1779371863000,-189.10514496,0.00039483,120]
[422766138,1779371863000,-192.8838787,0.00039483,120]
[422766137,1779371863000,-163.44178932,0.00039483,120]
[422766139,1779371863000,-183.71045765,0.00039483,120]
[422766140,1779371863000,-220.01669105,0.00039483,120]
[422766141,1779371863000,-500.0,0.00039483,120]
[422766143,1779371863000,-500.0,0.00039483,120]
[422766144,1779371863000,-500.0,0.00039483,120]
[422766142,1779371863000,-500.0,0.00039483,120]
[422766145,1779371863000,-500.0,0.00039483,120]
[422766147,1779371863000,-500.0,0.00039483,120]
[422766149,1779371863000,-500.0,0.00039483,120]
[422766148,1779371863000,-500.0,0.00039483,120]
[422766150,1779371863000,-500.0,0.00039483,120]
[422766151,1779371863000,-595.99510315,0.00039483,120]
[422766153,1779371863000,-156.20672431,0.00039483,120]
[422766152,1779371863000,-169.09868525,0.00039483,120]
[422766154,1779371863000,-161.89246543,0.00039483,120]
[422766146,1779371863000,-500.0,0.00039483,120]
[422766163,1779371864000,-500.0,0.00039483,120]
[422766160,1779371864000,-500.0,0.00039483,120]
[422766161,1779371864000,-500.0,0.00039483,120]
[422766162,1779371864000,-500.0,0.00039483,120]
[422766159,1779371864000,-341.70272033,0.00039483,120]
[422766157,1779371864000,-500.0,0.00039483,120]
[422766156,1779371864000,-500.0,0.00039483,120]
[422766158,1779371864000,-500.0,0.00039483,120]
[422766155,1779371864000,-500.0,0.00039483,120]
[422766165,1779371864000,-500.0,0.00039483,120]
[422766166,1779371864000,-500.0,0.00039483,120]
[422766173,1779371864000,-510.77105205,0.00039483,120]
[422766172,1779371864000,-500.0,0.00039483,120]
[422766171,1779371864000,-500.0,0.00039483,120]
[422766174,1779371864000,-500.0,0.00039483,120]
[422766170,1779371864000,-500.0,0.00039483,120]
[422766168,1779371864000,-500.0,0.00039483,120]
[422766167,1779371864000,-500.0,0.00039483,120]
[422766169,1779371864000,-500.0,0.00039483,120]
[422766164,1779371864000,-500.0,0.00039483,120]
[422766182,1779371865000,-233.37685723,0.00039483,120]
[422766175,1779371865000,-500.0,0.00039483,120]
[422766176,1779371865000,-500.0,0.00039483,120]
[422766177,1779371865000,-500.0,0.00039483,120]
[422766178,1779371865000,-206.74727715,0.00039483,120]
[422766180,1779371865000,-157.41152478,0.00039483,120]
[422766179,1779371865000,-173.82658031,0.00039483,120]
[422766181,1779371865000,-193.16056511,0.00039483,120]
[422766183,1779371865000,-174.70331619,0.00039483,120]
[422766185,1779371865000,-153.05475033,0.00039483,120]
[422766187,1779371865000,-209.92089575,0.00039483,120]
[422766186,1779371865000,-152.45312832,0.00039483,120]
[422766188,1779371865000,-169.24620923,0.00039483,120]
[422766190,1779371865000,-500.0,0.00039483,120]
[422766189,1779371865000,-500.0,0.00039483,120]
[422766192,1779371865000,-500.0,0.00039483,120]
[422766191,1779371865000,-500.0,0.00039483,120]
[422766184,1779371865000,-179.61220302,0.00039483,120]
[422766200,1779371866000,-500.0,0.00039483,120]
[422766197,1779371866000,-500.0,0.00039483,120]
[422766198,1779371866000,-500.0,0.00039483,120]
[422766199,1779371866000,-500.0,0.00039483,120]
[422766196,1779371866000,-500.0,0.00039483,120]
[422766193,1779371866000,-500.0,0.00039483,120]
[422766194,1779371866000,-500.0,0.00039483,120]
[422766195,1779371866000,-500.0,0.00039483,120]
[422766202,1779371866000,-405.720292,0.00039483,90]
[422766209,1779371866000,-307.82754553,0.00039483,120]
[422766204,1779371866000,-153.0,0.00039483,120]
[422766210,1779371866000,-1690.0,0.00039483,120]
[422766211,1779371866000,-435.54,0.00039483,60]
[422766208,1779371866000,-8210.1769475,0.00039483,120]
[422766201,1779371866000,-501.3,0.00039483,120]
[422766205,1779371866000,-153.0,0.00039483,120]
[422766206,1779371866000,-153.0,0.00039483,120]
[422766203,1779371866000,-153.0,0.00039483,120]
[422766207,1779371866000,-153.0,0.00039483,120]
[422766220,1779371867000,-4048.73955479,0.00039483,120]
[422766212,1779371867000,-314.85,0.00039483,120]
[422766214,1779371867000,-1770.83999999,0.00039483,120]
[422766213,1779371867000,-9726.77,0.00039483,120]
[422766216,1779371867000,-11911.63,0.00039483,120]
[422766215,1779371867000,-500.0,0.00039483,120]
[422766218,1779371867000,-311.16215999,0.00039483,30]
[422766217,1779371867000,-203.28503567,0.00039483,120]
[422766219,1779371867000,-788.94428396,0.00039483,120]
[422766221,1779371867000,-7064.32828683,0.00039483,30]
[422766222,1779371867000,-1851.0,0.00039483,120]
[422766229,1779371867000,-500.0,0.00039483,120]
[422766228,1779371867000,-4874.0957907,0.00039483,120]
[422766227,1779371867000,-4168.16635355,0.00039483,30]
[422766230,1779371867000,-500.0,0.00039483,120]
[422766224,1779371867000,-156.21421499,0.00039483,120]
[422766225,1779371867000,-1364.22534418,0.00039483,31]
[422766223,1779371867000,-1189.28892943,0.00039483,120]
[422766226,1779371867000,-165.96396876,0.00039483,60]
[422766238,1779371868000,-500.0,0.00039483,120]
[422766232,1779371868000,-500.0,0.00039483,120]
[422766233,1779371868000,-500.0,0.00039483,120]
[422766234,1779371868000,-500.0,0.00039483,120]
[422766235,1779371868000,-500.0,0.00039483,120]
[422766236,1779371868000,-500.0,0.00039483,120]
[422766237,1779371868000,-500.0,0.00039483,120]
[422766239,1779371868000,-500.0,0.00039483,120]
[422766231,1779371868000,-500.0,0.00039483,120]
[422766241,1779371868000,-500.0,0.00039483,120]
[422766248,1779371868000,-508.7262669,0.00039483,120]
[422766246,1779371868000,-500.0,0.00039483,120]
[422766247,1779371868000,-500.0,0.00039483,120]
[422766240,1779371868000,-500.0,0.00039483,120]
[422766245,1779371868000,-500.0,0.00039483,120]
[422766242,1779371868000,-500.0,0.00039483,120]
[422766243,1779371868000,-500.0,0.00039483,120]
[422766244,1779371868000,-500.0,0.00039483,120]
[422766256,1779371869000,-3068.58,0.00039483,120]
[422766251,1779371869000,-1971.0,0.00039483,120]
[422766250,1779371869000,-629.0,0.00039483,120]
[422766253,1779371869000,-3068.58,0.00039483,120]
[422766252,1779371869000,-3068.58,0.00039483,120]
[422766254,1779371869000,-3068.58,0.00039483,120]
[422766255,1779371869000,-3068.58,0.00039483,120]
[422766257,1779371869000,-3068.58,0.00039483,120]
[422766249,1779371869000,-5944.91570694,0.00039483,60]
[422766259,1779371869000,-3068.58,0.00039483,120]
[422766266,1779371869000,-3068.58,0.00039483,120]
[422766265,1779371869000,-3068.58,0.00039483,120]
[422766264,1779371869000,-3068.58,0.00039483,120]
[422766258,1779371869000,-3068.58,0.00039483,120]
[422766261,1779371869000,-3068.58,0.00039483,120]
[422766262,1779371869000,-3068.58,0.00039483,120]
[422766260,1779371869000,-3068.58,0.00039483,120]
[422766263,1779371869000,-3068.58,0.00039483,120]
[422766273,1779371870000,-3068.58,0.00039483,120]
[422766268,1779371870000,-3068.58,0.00039483,120]
[422766269,1779371870000,-3068.58,0.00039483,120]
[422766270,1779371870000,-3068.58,0.00039483,120]
[422766271,1779371870000,-3068.58,0.00039483,120]
[422766272,1779371870000,-3068.58,0.00039483,120]
[422766274,1779371870000,-3068.58,0.00039483,120]
[422766267,1779371870000,-3068.58,0.00039483,120]
[422766275,1779371870000,-3068.68825243,0.00039483,120]
[422766277,1779371870000,-828.0,0.00039483,120]
[422766278,1779371870000,-50000.0,0.00039483,44]
[422766279,1779371870000,-50000.0,0.00039483,45]
[422766281,1779371870000,-50000.0,0.00039483,51]
[422766280,1779371870000,-50000.0,0.00039483,50]
[422766283,1779371870000,-50000.0,0.00039483,53]
[422766282,1779371870000,-50000.0,0.00039483,52]
[422766276,1779371870000,-1332.91,0.00039483,120]
[422766290,1779371871000,-353.0,0.00039483,120]
[422766284,1779371871000,-50000.0,0.00039483,54]
[422766285,1779371871000,-50000.0,0.00039483,55]
[422766286,1779371871000,-50000.0,0.00039483,56]
[422766288,1779371871000,-50000.0,0.00039483,58]
[422766287,1779371871000,-50000.0,0.00039483,57]
[422766289,1779371871000,-50000.0,0.00039483,59]
[422766291,1779371871000,-6395.30986159,0.00039483,120]
[422766292,1779371871000,-500.0,0.00039483,120]
[422766293,1779371871000,-500.0,0.00039483,120]
[422766295,1779371871000,-500.0,0.00039483,120]
[422766294,1779371871000,-500.0,0.00039483,120]
[422766296,1779371871000,-500.0,0.00039483,120]
[422766298,1779371871000,-500.0,0.00039483,120]
[422766297,1779371871000,-500.0,0.00039483,120]
[422766299,1779371871000,-500.0,0.00039483,120]
[422766300,1779371871000,-500.0,0.00039483,120]
[422766301,1779371872000,-500.0,0.00039483,120]
[422766302,1779371872000,-500.0,0.00039483,120]
[422766303,1779371872000,-500.0,0.00039483,120]
[422766304,1779371872000,-500.0,0.00039483,120]
[422766305,1779371872000,-500.0,0.00039483,120]
[422766306,1779371872000,-500.0,0.00039483,120]
[422766308,1779371872000,-250.0,0.00039483,120]
[422766307,1779371872000,-496.0,0.00039483,120]
[422766317,1779371872000,-500.0,0.00039483,90]
[422766309,1779371872000,-63605.86099537,0.00039483,120]
[422766311,1779371872000,-912177.0,0.00039483,90]
[422766312,1779371872000,-170.6,0.00039483,120]
[422766313,1779371872000,-565.19271401,0.00039483,30]
[422766314,1779371872000,-343.0,0.00039483,30]
[422766315,1779371872000,-500.0,0.00039483,90]
[422766316,1779371872000,-500.0,0.00039483,90]
[422766310,1779371872000,-397.36386021,0.00039483,120]
[422766323,1779371873000,-500.0,0.00039483,90]
[422766322,1779371873000,-500.0,0.00039483,90]
[422766321,1779371873000,-500.0,0.00039483,90]
[422766324,1779371873000,-500.0,0.00039483,90]
[422766319,1779371873000,-495.85,0.00039483,90]
[422766318,1779371873000,-500.0,0.00039483,90]
[422766320,1779371873000,-500.0,0.00039483,90]
[422766325,1779371873000,-500.0,0.00039483,90]
[422766334,1779371873000,-500.0,0.00039483,90]
[422766327,1779371873000,-500.0,0.00039483,90]
[422766329,1779371873000,-500.0,0.00039483,90]
[422766328,1779371873000,-500.0,0.00039483,90]
[422766330,1779371873000,-500.0,0.00039483,90]
[422766332,1779371873000,-500.0,0.00039483,90]
[422766331,1779371873000,-500.0,0.00039483,90]
[422766333,1779371873000,-500.0,0.00039483,90]
[422766326,1779371873000,-500.0,0.00039483,90]
[422766342,1779371874000,-500.0,0.00039483,120]
[422766339,1779371874000,-500.0,0.00039483,90]
[422766340,1779371874000,-553.46842507,0.00039483,90]
[422766336,1779371874000,-500.0,0.00039483,90]
[422766338,1779371874000,-500.0,0.00039483,90]
[422766335,1779371874000,-500.0,0.00039483,90]
[422766341,1779371874000,-202.33426879,0.00039483,30]
[422766337,1779371874000,-500.0,0.00039483,90]
[422766344,1779371874000,-500.0,0.00039483,120]
[422766351,1779371874000,-731.7,0.00039483,120]
[422766346,1779371874000,-731.7,0.00039483,120]
[422766352,1779371874000,-731.7,0.00039483,120]
[422766353,1779371874000,-731.7,0.00039483,120]
[422766350,1779371874000,-731.7,0.00039483,120]
[422766343,1779371874000,-500.0,0.00039483,120]
[422766347,1779371874000,-731.7,0.00039483,120]
[422766348,1779371874000,-731.7,0.00039483,120]
[422766345,1779371874000,-450.0,0.00039483,120]
[422766349,1779371874000,-731.7,0.00039483,120]
[422766362,1779371875000,-731.7,0.00039483,120]
[422766355,1779371875000,-731.7,0.00039483,120]
[422766356,1779371875000,-731.7,0.00039483,120]
[422766357,1779371875000,-731.7,0.00039483,120]
[422766359,1779371875000,-731.7,0.00039483,120]
[422766358,1779371875000,-731.7,0.00039483,120]
[422766360,1779371875000,-731.7,0.00039483,120]
[422766361,1779371875000,-731.7,0.00039483,120]
[422766354,1779371875000,-731.7,0.00039483,120]
[422766363,1779371875000,-731.7,0.00039483,120]
[422766366,1779371875000,-731.7,0.00039483,120]
[422766365,1779371875000,-731.7,0.00039483,120]
[422766368,1779371875000,-731.7,0.00039483,120]
[422766367,1779371875000,-731.7,0.00039483,120]
[422766370,1779371875000,-250.0,0.00039483,120]
[422766369,1779371875000,-731.86219655,0.00039483,120]
[422766372,1779371875000,-2656.39130293,0.00039483,120]
[422766371,1779371875000,-2628.0,0.00039483,120]
[422766364,1779371875000,-731.7,0.00039483,120]
[422766378,1779371876000,-450.16,0.00039483,30]
[422766373,1779371876000,-87809.85,0.00039483,120]
[422766374,1779371876000,-193.93241531,0.00039483,120]
[422766376,1779371876000,-450.13,0.00039483,30]
[422766375,1779371876000,-450.13,0.00039483,30]
[422766377,1779371876000,-450.13,0.00039483,30]
[422766379,1779371876000,-1689.99020751,0.00039483,120]
[422766385,1779371876000,-1500.95,0.00039483,120]
[422766381,1779371876000,-1500.95,0.00039483,120]
[422766383,1779371876000,-1500.95,0.00039483,120]
[422766382,1779371876000,-1500.95,0.00039483,120]
[422766384,1779371876000,-1500.95,0.00039483,120]
[422766387,1779371876000,-1500.95,0.00039483,120]
[422766386,1779371876000,-1500.95,0.00039483,120]
[422766388,1779371876000,-678.88565368,0.00039483,120]
[422766380,1779371876000,-515.17439738,0.00039483,120]
[422766389,1779371877000,-1500.95,0.00039483,120]
[422766390,1779371877000,-1500.95,0.00039483,120]
[422766391,1779371877000,-1500.95,0.00039483,120]
[422766392,1779371877000,-1500.95,0.00039483,120]
[422766393,1779371877000,-1500.95,0.00039483,120]
[422766394,1779371877000,-1500.95,0.00039483,120]
[422766395,1779371877000,-1500.95,0.00039483,120]
[422766396,1779371877000,-1500.95,0.00039483,120]
[422766405,1779371877000,-1501.0285604,0.00039483,120]
[422766398,1779371877000,-1500.95,0.00039483,120]
[422766399,1779371877000,-1500.95,0.00039483,120]
[422766400,1779371877000,-1500.95,0.00039483,120]
[422766401,1779371877000,-1500.95,0.00039483,120]
[422766402,1779371877000,-1500.95,0.00039483,120]
[422766403,1779371877000,-1500.95,0.00039483,120]
[422766404,1779371877000,-1500.95,0.00039483,120]
[422766397,1779371877000,-1500.95,0.00039483,120]
[422766411,1779371878000,-509.88,0.00039483,120]
[422766410,1779371878000,-509.88,0.00039483,120]
[422766409,1779371878000,-509.88,0.00039483,120]
[422766412,1779371878000,-509.88,0.00039483,120]
[422766407,1779371878000,-509.88,0.00039483,120]
[422766406,1779371878000,-509.88,0.00039483,120]
[422766408,1779371878000,-509.88,0.00039483,120]
[422766413,1779371878000,-509.88,0.00039483,120]